fUST/lending_fUST_20241121
["ID","MTS","AMOUNT","RATE_DAILY","PERIOD"]
[342824195,1732158646331,-500.0,0.00022492,2]
[342824196,1732158646340,-398.87625457,0.00022492,2]
[342824197,1732158646350,-500.0,0.00022492,2]
[342824198,1732158646359,-500.0,0.00022492,2]
[342824199,1732158646369,-500.0,0.00022492,2]
[342824200,1732158646379,-185.46126028,0.00022492,2]
[342824201,1732158675627,188.408791,0.00013973,2]
[342824202,1732159083650,273.2748002,0.00022,39]
[342824203,1732159116445,1840.92791725,0.00013,2]
[342824205,1732159432875,188.408791,0.00013973,2]
[342824244,1732159811711,964.36768139,0.00013,2]
[342824245,1732159820792,917.90473785,0.000125,2]
[342824246,1732159831795,17636.80955808,0.000134,2]
[342824288,1732159832403,-789.84941188,0.00019788,4]
[342824290,1732159832412,-250.0,0.0002053,2]
[342824292,1732159832422,-300.0,0.00020685,2]
[342824294,1732159832431,-300.0,0.00020685,2]
[342824296,1732159832441,-18955.4523961,0.00020686,2]
[342824298,1732159832450,-354.23917416,0.00020781,2]
[342824300,1732159832459,-2057.359144,0.00020881,2]
[342824302,1732159832469,-200.80236,0.00020911,2]
[342824304,1732159832478,-1994.8572794,0.00021042,2]
[342824306,1732159832487,-167.844102,0.00021045,2]
[342824308,1732159832497,-1052.0898936,0.00021114,2]
[342824310,1732159832508,-2057.359144,0.00021566,2]
[342824312,1732159832517,-1001.92036425,0.00021817,2]
[342824314,1732159832526,-2774.56994544,0.00021917,2]
[342824316,1732159832535,-3224.31,0.00021917,2]
[342824318,1732159832545,-500.0,0.00021917,2]
[342824319,1732159832555,-500.0,0.00021917,2]
[342824321,1732159832563,-562.23547314,0.00021917,2]
[342824323,1732159832573,-500.0,0.00021917,2]
[342824325,1732159832582,-500.0,0.00021917,2]
[342824326,1732159832591,-10323.84232827,0.0002196,2]
[342824328,1732159832600,-727.70380023,0.0002196,2]
[342824330,1732159832609,-2003.53350056,0.00022,2]
[342824331,1732159832619,-366.0,0.00022,2]
[342824332,1732159832628,-161.0,0.00022,2]
[342824334,1732159832637,-1777.43,0.0002219,2]
[342824335,1732159832646,-873.02,0.0002219,2]
[342824337,1732159832656,-3224.31,0.00022191,2]
[342824339,1732159832665,-500.0,0.00022191,2]
[342824341,1732159832674,-500.0,0.00022191,2]
[342824343,1732159832685,-366.0,0.00022192,2]
[342824345,1732159832694,-2057.359144,0.00022251,2]
[342824346,1732159832703,-10323.84232828,0.00022361,2]
[342824347,1732159832712,-1777.43,0.00022464,2]
[342824348,1732159832721,-873.02,0.00022464,2]
[342824349,1732159832731,-3224.31,0.00022465,2]
[342824350,1732159832739,-409.78564513,0.00022465,2]
[342824351,1732159832749,-500.0,0.00022465,2]
[342824352,1732159832761,-420.0,0.00022508,2]
[342824353,1732159832771,-434.94564716,0.00022638,2]
[342824354,1732159832780,-1777.43,0.00022738,2]
[342824355,1732159832789,-873.02,0.00022738,2]
[342824356,1732159832798,-3224.31,0.00022739,2]
[342824357,1732159832808,-500.0,0.00022739,2]
[342824358,1732159832816,-248.0,0.00022753,2]
[342824359,1732159832825,-1001.92036422,0.00022833,2]
[342824360,1732159832834,-434.94564715,0.00022837,2]
[342824361,1732159832843,-475.72,0.00022839,3]
[342824362,1732159832854,-322.18100962,0.00022849,2]
[342824363,1732159832864,-378.11398911,0.00022849,2]
[342824364,1732159832873,-315.1645426,0.00022849,2]
[342824365,1732159832882,-500.0,0.00022849,2]
[342824366,1732159832891,-500.0,0.00022849,2]
[342824367,1732159832901,-500.0,0.00022849,2]
[342824368,1732159832911,-500.0,0.00022849,2]
[342824369,1732159832920,-500.0,0.00022849,2]
[342824370,1732159832930,-500.0,0.00022849,2]
[342824371,1732159832942,-500.0,0.00022849,2]
[342824372,1732159832953,-500.0,0.00022849,2]
[342824373,1732159832962,-500.0,0.00022849,2]
[342824374,1732159832972,-500.0,0.00022849,2]
[342824375,1732159832981,-500.0,0.00022849,2]
[342824376,1732159832991,-510.56816809,0.00022849,2]
[342824377,1732159833000,-455.81483469,0.0002285,2]
[342824378,1732159833014,-154.409816,0.0002285,7]
[342824379,1732159833024,-151.0,0.0002285,7]
[342824380,1732159833033,-153.357184,0.0002285,7]
[342824381,1732159833043,-155.742269,0.0002285,7]
[342824382,1732159833054,-151.081521,0.0002285,7]
[342824383,1732159833064,-151.0,0.0002285,7]
[342824384,1732159833074,-151.0,0.0002285,7]
[342824385,1732159833084,-76966.89085187,0.0002285,2]
[342824386,1732159833097,-2715.12340762,0.0002285,2]
[342824387,1732159833137,268.04018605,0.00014114,2]
[342824398,1732159838489,-500.0,0.00021917,2]
[342824399,1732159838498,-602.24,0.00021917,2]
[342824400,1732159838510,-293.66278412,0.00022191,2]
[342824401,1732159838519,-129.09723838,0.00022191,2]
[342824402,1732159838531,-473.14276162,0.00022191,2]
[342824403,1732159838540,-602.24,0.00022465,2]
[342824404,1732159838550,-602.24,0.00022739,2]
[342824405,1732159838560,-28401.56110357,0.0002285,2]
[342824406,1732159838814,-1327.61601986,0.0002285,2]
[342824463,1732159840459,-5209.94486267,0.0002285,2]
[342824477,1732159843467,-7802.411122,0.0001999,2]
[342824479,1732159843477,-411.75318279,0.00020686,2]
[342824480,1732159843487,-30894.31468455,0.0002285,2]
[342824481,1732159843498,-17979.44400917,0.0002285,2]
[342824495,1732159843664,436.33460741,0.00015,2]
[342824496,1732159844503,562.2515508,0.000149,2]
[342824497,1732159845676,1180.40452348,0.000109,2]
[342824506,1732159846488,-2003.77680419,0.0001984,4]
[342824507,1732159846506,-1930.15,0.00021917,2]
[342824508,1732159846528,-500.0,0.0002219,2]
[342824509,1732159846546,-500.0,0.0002219,2]
[342824510,1732159846565,-504.56963001,0.0002219,2]
[342824511,1732159846574,-1930.15,0.00022191,2]
[342824513,1732159846584,-500.0,0.00022464,2]
[342824515,1732159846593,-1930.15,0.00022465,2]
[342824517,1732159846603,-500.0,0.00022738,2]
[342824519,1732159846612,-154.656197,0.0002285,7]
[342824520,1732159846622,-694.98397427,0.0002285,2]
[342824521,1732159846647,-631.56,0.0002285,2]
[342824534,1732160005735,206.8657321,0.00016,2]
[342824535,1732160199306,170.114525,0.00013973,2]
[342824747,1732160877845,-183.4740756,0.00017895,2]
[342824748,1732160877869,-1052.0898936,0.00017975,2]
[342824749,1732160877893,-7015.625,0.00018,2]
[342824750,1732160877918,-895.5694363,0.00018063,2]
[342824751,1732160877940,-300.0,0.00018811,2]
[342824752,1732160877965,-300.0,0.00018811,2]
[342824753,1732160877988,-7457.3778575,0.00018812,2]
[342824754,1732160878012,-727.70380023,0.00019029,2]
[342824755,1732160878036,-43726.0,0.00019029,2]
[342824756,1732160878060,-24900.0,0.0001903,2]
[342824757,1732160878083,-948.1292736,0.00019815,2]
[342824758,1732160878108,-2118.78754,0.00019838,2]
[342824759,1732160878131,-2774.56994544,0.00020221,2]
[342824760,1732160878154,-374.3850619,0.00020221,2]
[342824761,1732160878179,-2774.2061356,0.00020226,2]
[342824762,1732160878202,-512.981191,0.00020282,2]
[342824763,1732160878227,-919.4689241,0.00020377,2]
[342824764,1732160878252,-420.0,0.00020508,2]
[342824765,1732160878276,-2118.78754,0.00020523,2]
[342824766,1732160878300,-420.0,0.00020692,2]
[342824767,1732160878324,-194.03,0.0002109,3]
[342824768,1732160878348,-194.03,0.0002109,3]
[342824769,1732160878372,-1355.585036,0.000211,2]
[342824770,1732160878396,-500.0,0.00021207,2]
[342824771,1732160878420,-500.0,0.00021207,2]
[342824772,1732160878445,-500.0,0.00021207,2]
[342824773,1732160878469,-283.7213705,0.00021207,2]
[342824774,1732160878494,-500.0,0.00021207,2]
[342824775,1732160878519,-500.0,0.00021207,2]
[342824776,1732160878543,-500.0,0.00021207,2]
[342824777,1732160878567,-500.0,0.00021207,2]
[342824778,1732160878592,-500.0,0.00021207,2]
[342824779,1732160878616,-500.0,0.00021207,2]
[342824780,1732160878639,-500.0,0.00021207,2]
[342824781,1732160878665,-500.0,0.00021207,2]
[342824782,1732160878688,-159.44012582,0.00021207,2]
[342824783,1732160878712,-500.0,0.00021207,2]
[342824784,1732160878736,-572.85178655,0.00021207,2]
[342824785,1732160878762,-500.0,0.00021207,2]
[342824786,1732160878786,-381.52616473,0.00021207,2]
[342824787,1732160878811,-500.0,0.00021207,2]
[342824788,1732160878836,-509.41945883,0.00021207,2]
[342824789,1732160878861,-500.0,0.00021207,2]
[342824790,1732160878885,-500.0,0.00021207,2]
[342824791,1732160878909,-500.0,0.00021207,2]
[342824792,1732160878936,-500.0,0.00021207,2]
[342824793,1732160878961,-500.0,0.00021207,2]
[342824794,1732160878986,-500.0,0.00021207,2]
[342824795,1732160879010,-561.21969459,0.00021207,2]
[342824796,1732160879035,-500.0,0.00021207,2]
[342824797,1732160879059,-208.91176754,0.00021207,2]
[342824798,1732160879084,-500.0,0.00021207,2]
[342824799,1732160879108,-500.0,0.00021207,2]
[342824800,1732160879134,-500.0,0.00021207,2]
[342824801,1732160879158,-500.0,0.00021207,2]
[342824802,1732160879186,-500.0,0.00021207,2]
[342824803,1732160879211,-500.0,0.00021207,2]
[342824804,1732160879234,-500.0,0.00021207,2]
[342824805,1732160879259,-500.0,0.00021207,2]
[342824806,1732160879284,-500.0,0.00021207,2]
[342824807,1732160879308,-500.0,0.00021207,2]
[342824808,1732160879333,-500.0,0.00021207,2]
[342824809,1732160879359,-500.0,0.00021207,2]
[342824810,1732160879383,-500.0,0.00021207,2]
[342824811,1732160879408,-500.0,0.00021207,2]
[342824812,1732160879433,-500.0,0.00021207,2]
[342824813,1732160879546,-500.0,0.00021207,2]
[342824814,1732160879572,-500.0,0.00021207,2]
[342824815,1732160879601,-500.0,0.00021207,2]
[342824816,1732160879625,-360.82471447,0.00021207,2]
[342824817,1732160879651,-500.0,0.00021207,2]
[342824818,1732160879680,-500.0,0.00021207,2]
[342824819,1732160879705,-500.0,0.00021207,2]
[342824820,1732160879729,-500.0,0.00021207,2]
[342824821,1732160879755,-500.0,0.00021207,2]
[342824822,1732160879780,-500.0,0.00021207,2]
[342824823,1732160879804,-500.0,0.00021207,2]
[342824824,1732160879830,-500.0,0.00021207,2]
[342824825,1732160879856,-500.0,0.00021207,2]
[342824826,1732160879882,-500.0,0.00021207,2]
[342824827,1732160879907,-500.0,0.00021207,2]
[342824828,1732160879941,-500.0,0.00021207,2]
[342824829,1732160879965,-500.0,0.00021207,2]
[342824830,1732160879991,-500.0,0.00021207,2]
[342824831,1732160880015,-500.0,0.00021207,2]
[342824832,1732160880039,-500.0,0.00021207,2]
[342824833,1732160880065,-500.0,0.00021207,2]
[342824834,1732160880089,-500.0,0.00021207,2]
[342824835,1732160880115,-500.0,0.00021207,2]
[342824836,1732160880141,-500.0,0.00021207,2]
[342824837,1732160880170,-500.0,0.00021207,2]
[342824838,1732160880197,-500.0,0.00021207,2]
[342824839,1732160880225,-500.0,0.00021207,2]
[342824840,1732160880253,-341.94359734,0.00021207,2]
[342824841,1732160880278,-500.0,0.00021207,2]
[342824842,1732160880304,-500.0,0.00021207,2]
[342824843,1732160880331,-500.0,0.00021207,2]
[342824844,1732160880356,-500.0,0.00021207,2]
[342824845,1732160880382,-500.0,0.00021207,2]
[342824846,1732160880407,-500.0,0.00021207,2]
[342824847,1732160880437,-500.0,0.00021207,2]
[342824848,1732160880461,-500.0,0.00021207,2]
[342824849,1732160880487,-381.10714656,0.00021207,2]
[342824850,1732160880514,-500.0,0.00021207,2]
[342824851,1732160880541,-500.0,0.00021207,2]
[342824852,1732160880574,-500.0,0.00021207,2]
[342824853,1732160880611,-500.0,0.00021207,2]
[342824854,1732160880643,-500.0,0.00021207,2]
[342824855,1732160880680,-500.0,0.00021207,2]
[342824856,1732160880711,-500.0,0.00021207,2]
[342824857,1732160880743,-500.0,0.00021207,2]
[342824858,1732160880776,-274.55360182,0.00021207,2]
[342824859,1732160880810,-500.0,0.00021207,2]
[342824860,1732160880842,-500.0,0.00021207,2]
[342824861,1732160880874,-500.0,0.00021207,2]
[342824862,1732160880905,-500.0,0.00021207,2]
[342824863,1732160880935,-500.0,0.00021207,2]
[342824864,1732160880966,-500.0,0.00021207,2]
[342824865,1732160880996,-2118.78754,0.00021208,2]
[342824866,1732160881028,-866.35181994,0.000215,2]
[342824867,1732160881059,-1000.0,0.000216,2]
[342824868,1732160881091,-9309.16877842,0.00021761,2]
[342824869,1732160881117,-866.35181993,0.00021793,2]
[342824870,1732160881143,-151.0,0.00021913,2]
[342824871,1732160881177,-151.0,0.00021913,2]
[342824872,1732160881207,-151.0,0.00021913,2]
[342824873,1732160881234,-205.497498,0.00021913,2]
[342824874,1732160881263,-207.839831,0.00021913,2]
[342824875,1732160881292,-205.497498,0.00021913,2]
[342824876,1732160881319,-151.0,0.00021914,2]
[342824877,1732160881347,-151.0,0.00021914,2]
[342824878,1732160881375,-151.0,0.00021914,2]
[342824879,1732160881404,-151.0,0.00021914,2]
[342824880,1732160881432,-151.0,0.00021914,2]
[342824881,1732160881461,-151.0,0.00021914,2]
[342824882,1732160881491,-151.0,0.00021914,2]
[342824883,1732160881520,-151.0,0.00021914,2]
[342824884,1732160881548,-154.773637,0.00021915,2]
[342824885,1732160881576,-264.67979238,0.00021916,2]
[342824886,1732160881609,-225.52670673,0.00021916,2]
[342824887,1732160881637,-220.61517982,0.00021916,2]
[342824888,1732160881668,-500.0,0.00021917,2]
[342824889,1732160881695,-502.05723519,0.00021917,2]
[342824890,1732160881838,-370.69534912,0.00021917,2]
[342824891,1732160881863,-501.70895087,0.00021917,2]
[342824892,1732160881887,-151.0,0.00021917,2]
[342824893,1732160881912,-151.0,0.00021917,2]
[342824894,1732160881938,-505.63651712,0.00021917,2]
[342824895,1732160881961,-502.48110365,0.00021917,2]
[342824896,1732160881985,-501.69278077,0.00021917,2]
[342824897,1732160882009,-502.52463904,0.00021917,2]
[342824898,1732160882034,-500.0,0.00021917,2]
[342824899,1732160882057,-154.56636537,0.00021917,2]
[342824900,1732160882082,-520.89357573,0.00021917,2]
[342824901,1732160882106,-188.467967,0.00021917,2]
[342824902,1732160882131,-500.0,0.00021917,2]
[342824903,1732160882154,-504.18392331,0.00021917,2]
[342824904,1732160882187,-504.28385126,0.00021917,2]
[342824905,1732160882212,-508.55343357,0.00021917,2]
[342824906,1732160882236,-508.47146077,0.00021917,2]
[342824907,1732160882261,-505.01071181,0.00021917,2]
[342824908,1732160882285,-500.0,0.00021917,2]
[342824909,1732160882312,-500.0,0.00021917,2]
[342824910,1732160882337,-520.0501776,0.00021917,2]
[342824911,1732160882362,-509.65546778,0.00021917,2]
[342824912,1732160882387,-151.431724,0.00021917,2]
[342824913,1732160882411,-500.0,0.00021917,2]
[342824914,1732160882442,-509.76779797,0.00021917,2]
[342824915,1732160882467,-502.34650691,0.00021917,2]
[342824916,1732160882491,-416.25954577,0.00021917,2]
[342824917,1732160882515,-501.55997521,0.00021917,2]
[342824918,1732160882539,-500.0,0.00021917,2]
[342824919,1732160882564,-500.0,0.00021917,2]
[342824920,1732160882590,-507.15276483,0.00021917,2]
[342824921,1732160882614,-500.0,0.00021917,2]
[342824922,1732160882640,-151.0,0.00021917,2]
[342824923,1732160882664,-151.0,0.00021917,2]
[342824924,1732160882691,-151.0,0.00021917,2]
[342824925,1732160882714,-151.0,0.00021917,2]
[342824926,1732160882738,-373.28092825,0.00021917,2]
[342824927,1732160882763,-532.62720445,0.00021917,2]
[342824928,1732160882788,-151.0,0.00021917,2]
[342824929,1732160882813,-151.0,0.00021917,2]
[342824930,1732160882840,-897.12,0.00021917,2]
[342824931,1732160882865,-503.73361715,0.00021917,2]
[342824932,1732160882889,-508.53872886,0.00021917,2]
[342824933,1732160882913,-201.40610426,0.00021917,2]
[342824934,1732160882939,-500.0,0.00021917,2]
[342824935,1732160882964,-503.18734129,0.00021917,2]
[342824936,1732160882989,-500.0,0.00021917,2]
[342824937,1732160883014,-500.0,0.00021917,2]
[342824938,1732160883039,-500.0,0.00021917,2]
[342824939,1732160883064,-514.32708993,0.00021917,2]
[342824940,1732160883088,-502.2351742,0.00021917,2]
[342824941,1732160883113,-151.0,0.00021917,2]
[342824942,1732160883139,-151.0,0.00021917,2]
[342824943,1732160883164,-500.0,0.00021917,2]
[342824944,1732160883193,-289.42808677,0.00021917,2]
[342824945,1732160883218,-500.0,0.00021917,2]
[342824946,1732160883245,-1024.92,0.00021917,2]
[342824947,1732160883272,-511.7956347,0.00021917,2]
[342824948,1732160883298,-304.78188452,0.00021917,2]
[342824949,1732160883322,-208.24526896,0.00021917,2]
[342824950,1732160883348,-151.0,0.00021917,2]
[342824951,1732160883375,-151.0,0.00021917,2]
[342824952,1732160883400,-501.46303214,0.00021917,2]
[342824953,1732160883427,-503.20163026,0.00021917,2]
[342824954,1732160883452,-521.90436913,0.00021917,2]
[342824955,1732160883479,-500.0,0.00021917,2]
[342824956,1732160883506,-500.0,0.00021917,2]
[342824957,1732160883533,-500.0,0.00021917,2]
[342824958,1732160883558,-525.74544115,0.00021917,2]
[342824959,1732160883584,-500.0,0.00021917,2]
[342824960,1732160883613,-500.0,0.00021917,2]
[342824961,1732160883640,-510.30637811,0.00021917,2]
[342824962,1732160883669,-500.0,0.00021917,2]
[342824963,1732160883695,-500.0,0.00021917,2]
[342824964,1732160883723,-500.0,0.00021917,2]
[342824965,1732160883749,-508.45984682,0.00021917,2]
[342824966,1732160883777,-151.0,0.00021917,2]
[342824967,1732160883804,-151.0,0.00021917,2]
[342824968,1732160883830,-530.44431102,0.00021917,2]
[342824969,1732160883951,-151.0,0.00021917,2]
[342824970,1732160883979,-151.0,0.00021917,2]
[342824971,1732160884005,-506.28338939,0.00021917,2]
[342824972,1732160884030,-500.0,0.00021917,2]
[342824973,1732160884056,-509.5449362,0.00021917,2]
[342824974,1732160884083,-500.0,0.00021917,2]
[342824975,1732160884110,-514.34645518,0.00021917,2]
[342824976,1732160884136,-500.0,0.00021917,2]
[342824977,1732160884163,-508.66465007,0.00021917,2]
[342824978,1732160884193,-500.0,0.00021917,2]
[342824979,1732160884219,-399.44764149,0.00021917,2]
[342824980,1732160884246,-500.0,0.00021917,2]
[342824981,1732160884272,-507.96067916,0.00021917,2]
[342824982,1732160884298,-151.0,0.00021917,2]
[342824983,1732160884325,-151.0,0.00021917,2]
[342824984,1732160884353,-511.32603418,0.00021917,2]
[342824985,1732160884380,-523.83989908,0.00021917,2]
[342824986,1732160884406,-500.29952594,0.00021917,2]
[342824987,1732160884435,-610.5139265,0.00021917,2]
[342824988,1732160884462,-500.0,0.00021917,2]
[342824989,1732160884490,-513.4161572,0.00021917,2]
[342824990,1732160884517,-300.10967841,0.00021917,2]
[342824991,1732160884544,-500.0,0.00021917,2]
[342824992,1732160884570,-500.0,0.00021917,2]
[342824993,1732160884600,-520.71572731,0.00021917,2]
[342824994,1732160884626,-500.0,0.00021917,2]
[342824995,1732160884652,-506.81449136,0.00021917,2]
[342824996,1732160884679,-500.0,0.00021917,2]
[342824997,1732160884706,-500.0,0.00021917,2]
[342824998,1732160884731,-500.0,0.00021917,2]
[342824999,1732160884759,-500.0,0.00021917,2]
[342825000,1732160884784,-535.5418242,0.00021917,2]
[342825001,1732160884809,-500.0,0.00021917,2]
[342825002,1732160884834,-500.0,0.00021917,2]
[342825003,1732160884859,-500.0,0.00021917,2]
[342825004,1732160884885,-501.22166312,0.00021917,2]
[342825005,1732160884911,-500.0,0.00021917,2]
[342825006,1732160884939,-500.0,0.00021917,2]
[342825007,1732160884963,-507.71241167,0.00021917,2]
[342825008,1732160884988,-244.60709577,0.00021917,2]
[342825009,1732160885014,-500.0,0.00021917,2]
[342825010,1732160885041,-168.57,0.00021917,2]
[342825011,1732160885067,-500.0,0.00021917,2]
[342825012,1732160885092,-505.2398516,0.00021917,2]
[342825013,1732160885117,-500.0,0.00021917,2]
[342825014,1732160885141,-205.497498,0.00021917,2]
[342825015,1732160885166,-505.9053527,0.00021917,2]
[342825016,1732160885194,-205.497498,0.00021917,2]
[342825017,1732160885218,-507.54292281,0.00021917,2]
[342825018,1732160885243,-500.0,0.00021917,2]
[342825019,1732160885268,-500.0,0.00021917,2]
[342825020,1732160885294,-512.2823848,0.00021917,2]
[342825021,1732160885321,-502.60303521,0.00021917,2]
[342825022,1732160885346,-521.62335108,0.00021917,2]
[342825023,1732160885371,-205.497498,0.00021917,2]
[342825024,1732160885397,-205.497498,0.00021917,2]
[342825025,1732160885425,-500.0,0.00021917,2]
[342825026,1732160885451,-1992.03,0.00021917,2]
[342825027,1732160885478,-3245.14,0.00021917,2]
[342825028,1732160885503,-503.07146606,0.00021917,2]
[342825029,1732160885528,-512.24347322,0.00021917,2]
[342825030,1732160885553,-501.83064624,0.00021917,2]
[342825031,1732160885578,-526.39267134,0.00021917,2]
[342825032,1732160885604,-500.0,0.00021917,2]
[342825033,1732160885630,-507.73095878,0.00021917,2]
[342825034,1732160885655,-510.86150824,0.00021917,2]
[342825035,1732160885684,-500.0,0.00021917,2]
[342825036,1732160885708,-500.0,0.00021917,2]
[342825037,1732160885732,-500.0,0.00021917,2]
[342825038,1732160885758,-500.0,0.00021917,2]
[342825039,1732160885783,-500.0,0.00021917,2]
[342825040,1732160885809,-500.0,0.00021917,2]
[342825041,1732160885833,-500.0,0.00021917,2]
[342825042,1732160885858,-505.73845293,0.00021917,2]
[342825043,1732160885883,-646.3697759,0.00021917,2]
[342825044,1732160885908,-500.0,0.00021917,2]
[342825045,1732160885935,-551.35398261,0.00021917,2]
[342825046,1732160885960,-500.0,0.00021917,2]
[342825047,1732160885985,-9309.16877842,0.00021963,2]
[342825048,1732160886009,-264.24807932,0.00021973,2]
[342825049,1732160886033,-500.95805416,0.00021973,2]
[342825050,1732160886060,-429.0,0.00022,2]
[342825051,1732160886178,-161.0,0.00022,2]
[342825052,1732160886204,-866.35181993,0.00022087,2]
[342825053,1732160886234,-1000.0,0.000221,2]
[342825054,1732160886259,-152.759871,0.00022189,7]
[342825055,1732160886285,-500.0,0.0002219,2]
[342825056,1732160886311,-316.24269184,0.0002219,2]
[342825057,1732160886336,-508.8462693,0.0002219,2]
[342825058,1732160886363,-500.0,0.0002219,2]
[342825059,1732160886388,-284.768618,0.0002219,7]
[342825060,1732160886412,-217.73855162,0.0002219,2]
[342825061,1732160886440,-511.49883964,0.0002219,2]
[342825062,1732160886466,-501.56370878,0.0002219,2]
[342825063,1732160886492,-504.37337238,0.0002219,2]
[342825064,1732160886520,-151.0,0.0002219,7]
[342825065,1732160886546,-500.0,0.0002219,2]
[342825066,1732160886572,-501.39724894,0.0002219,2]
[342825067,1732160886599,-500.0,0.0002219,2]
[342825068,1732160886625,-500.0,0.0002219,2]
[342825069,1732160886661,-216.79785196,0.0002219,2]
[342825070,1732160886691,-500.0,0.0002219,2]
[342825071,1732160886718,-151.0,0.0002219,7]
[342825072,1732160886744,-151.0,0.0002219,7]
[342825073,1732160886770,-151.0,0.0002219,7]
[342825074,1732160886795,-452.11294236,0.0002219,2]
[342825075,1732160886820,-205.88363163,0.0002219,2]
[342825076,1732160886846,-508.14380684,0.0002219,2]
[342825077,1732160886883,-151.0,0.0002219,7]
[342825078,1732160886912,-484.64713515,0.0002219,2]
[342825079,1732160886940,-507.54651771,0.0002219,2]
[342825080,1732160886969,-151.0,0.0002219,7]
[342825081,1732160886996,-634.79609463,0.0002219,2]
[342825082,1732160887023,-504.09098274,0.0002219,2]
[342825083,1732160887049,-510.07698923,0.0002219,2]
[342825084,1732160887075,-222.22619351,0.0002219,2]
[342825085,1732160887102,-510.17548167,0.0002219,2]
[342825086,1732160887129,-500.0,0.0002219,2]
[342825087,1732160887156,-500.0,0.0002219,2]
[342825088,1732160887185,-504.93067221,0.0002219,2]
[342825089,1732160887211,-591.45079523,0.0002219,2]
[342825090,1732160887237,-151.0,0.0002219,7]
[342825091,1732160887263,-503.83800752,0.0002219,2]
[342825092,1732160887290,-151.0,0.0002219,7]
[342825093,1732160887316,-555.64532971,0.0002219,2]
[342825094,1732160887343,-639.13333567,0.0002219,2]
[342825095,1732160887369,-507.2115128,0.0002219,2]
[342825096,1732160887396,-577.30817626,0.0002219,2]
[342825097,1732160887424,-504.3279242,0.0002219,2]
[342825098,1732160887451,-509.23290139,0.0002219,2]
[342825099,1732160887478,-502.29891906,0.0002219,2]
[342825100,1732160887505,-505.27989984,0.0002219,2]
[342825101,1732160887532,-151.0,0.0002219,7]
[342825102,1732160887559,-543.63576396,0.0002219,2]
[342825103,1732160887587,-500.0,0.0002219,2]
[342825104,1732160887615,-503.75579172,0.0002219,2]
[342825105,1732160887642,-500.0,0.0002219,2]
[342825106,1732160887671,-500.0,0.0002219,2]
[342825107,1732160887700,-500.0,0.0002219,2]
[342825108,1732160887726,-205.497498,0.0002219,7]
[342825109,1732160887753,-500.0,0.0002219,2]
[342825110,1732160887780,-205.497498,0.0002219,7]
[342825111,1732160887807,-500.0,0.00022191,2]
[342825112,1732160887833,-511.65838499,0.00022191,2]
[342825113,1732160887863,-509.23576933,0.00022191,2]
[342825114,1732160887891,-500.0,0.00022191,2]
[342825115,1732160887917,-538.94737931,0.00022191,2]
[342825116,1732160887945,-509.49020269,0.00022191,2]
[342825117,1732160887972,-369.55628664,0.00022191,2]
[342825118,1732160887998,-236.370001,0.00022191,7]
[342825119,1732160888025,-160.61571,0.00022191,7]
[342825120,1732160888051,-151.0,0.00022191,7]
[342825121,1732160888079,-897.12,0.00022191,2]
[342825122,1732160888104,-511.65546938,0.00022191,2]
[342825123,1732160888132,-500.0,0.00022191,2]
[342825124,1732160888158,-500.0,0.00022191,2]
[342825125,1732160888186,-204.56783647,0.00022191,2]
[342825126,1732160888211,-463.98856786,0.00022191,2]
[342825127,1732160888237,-151.0,0.00022191,7]
[342825128,1732160888264,-1024.92,0.00022191,2]